[Event "Titled Tuesday Blitz June 27 Early 2023"]
[White "Megalios, Konstantinos"]
[Black "Samadov, Read"]
[WhiteFideId "4238044"]
[BlackFideId "13417444"]
[WhiteElo "2618"]
[BlackElo "2865"]
[Result "1-0"]
[Round "4"]
[TimeControl "180+2"]
[Date "2023.06.27"]
[WhiteClock "0:00:17"]
[BlackClock "0:00:35"]
[Board "47"]

1. d4 {[%clk 0:03:00]}  Nf6 {[%clk 0:03:00]} 2. c4 {[%clk 0:02:58]}  g6 {[%clk 0:03:00]} 3. Nc3 {[%clk 0:02:58]}  Bg7 {[%clk 0:03:01]} 4. e4 {[%clk 0:02:57]}  d6 {[%clk 0:03:02]} 5. Nf3 {[%clk 0:02:57]}  O-O {[%clk 0:03:02]} 6. Be2 {[%clk 0:02:57]}  e5 {[%clk 0:03:03]} 7. d5 {[%clk 0:02:57]}  a5 {[%clk 0:03:02]} 8. Bg5 {[%clk 0:02:57]}  h6 {[%clk 0:03:02]} 9. Bh4 {[%clk 0:02:54]}  Na6 {[%clk 0:03:02]} 10. Nd2 {[%clk 0:02:54]}  Qe8 {[%clk 0:02:58]} 11. a3 {[%clk 0:02:49]}  Bd7 {[%clk 0:02:58]} 12. b3 {[%clk 0:02:49]}  Nh7 {[%clk 0:02:50]} 13. O-O {[%clk 0:02:46]}  Bf6 {[%clk 0:02:43]} 14. Bxf6 {[%clk 0:02:40]}  Nxf6 {[%clk 0:02:44]} 15. Qc2 {[%clk 0:02:36]}  Qe7 {[%clk 0:02:43]} 16. Qb2 {[%clk 0:02:34]}  Kg7 {[%clk 0:02:40]} 17. b4 {[%clk 0:02:33]}  b6 {[%clk 0:02:39]} 18. Rae1 {[%clk 0:02:16]}  h5 {[%clk 0:02:37]} 19. Nd1 {[%clk 0:02:06]}  h4 {[%clk 0:02:35]} 20. h3 {[%clk 0:02:02]}  Rh8 {[%clk 0:02:32]} 21. Ne3 {[%clk 0:01:46]}  g5 {[%clk 0:02:14]} 22. Bg4 {[%clk 0:01:32]}  Nxg4 {[%clk 0:02:08]} 23. hxg4 {[%clk 0:01:33]}  Qf6 {[%clk 0:02:05]} 24. g3 {[%clk 0:01:22]}  axb4 {[%clk 0:01:59]} 25. axb4 {[%clk 0:01:21]}  Rh7 {[%clk 0:01:58]} 26. Nf5+ {[%clk 0:01:06]}  Bxf5 {[%clk 0:01:58]} 27. exf5 {[%clk 0:01:05]}  Qh6 {[%clk 0:01:54]} 28. Kg2 {[%clk 0:01:00]}  Rah8 {[%clk 0:01:40]} 29. Rh1 {[%clk 0:00:58]}  h3+ {[%clk 0:01:37]} 30. Kh2 {[%clk 0:00:55]}  Nb8 {[%clk 0:01:36]} 31. Ne4 {[%clk 0:00:54]}  Nd7 {[%clk 0:01:36]} 32. Ra1 {[%clk 0:00:52]}  Nf6 {[%clk 0:01:31]} 33. f3 {[%clk 0:00:51]}  Rc8 {[%clk 0:01:14]} 34. Ra7 {[%clk 0:00:48]}  Nxe4 {[%clk 0:01:12]} 35. fxe4 {[%clk 0:00:47]}  c6 {[%clk 0:01:12]} 36. Rc1 {[%clk 0:00:35]}  Qf6 {[%clk 0:01:10]} 37. b5 {[%clk 0:00:34]}  cxd5 {[%clk 0:01:09]} 38. cxd5 {[%clk 0:00:34]}  Rhh8 {[%clk 0:01:08]} 39. Rc6 {[%clk 0:00:34]}  Ra8 {[%clk 0:01:05]} 40. Qa3 {[%clk 0:00:33]}  Rxa7 {[%clk 0:01:01]} 41. Qxa7 {[%clk 0:00:34]}  Qd8 {[%clk 0:01:01]} 42. Rc7 {[%clk 0:00:34]}  Qf6 {[%clk 0:00:59]} 43. Qxb6 {[%clk 0:00:32]}  Ra8 {[%clk 0:00:59]} 44. Ra7 {[%clk 0:00:31]}  Rc8 {[%clk 0:01:00]} 45. Rc7 {[%clk 0:00:29]}  Ra8 {[%clk 0:00:59]} 46. Rc2 {[%clk 0:00:20]}  Ra3 {[%clk 0:00:57]} 47. Qc7 {[%clk 0:00:20]}  Qh6 {[%clk 0:00:53]} 48. b6 {[%clk 0:00:20]}  Rb3 {[%clk 0:00:53]} 49. b7 {[%clk 0:00:20]}  Qh8 {[%clk 0:00:54]} 50. Qc8 {[%clk 0:00:19]}  Rxb7 {[%clk 0:00:38]} 51. Qxb7 {[%clk 0:00:19]}  Qd8 {[%clk 0:00:39]} 52. Rc7 {[%clk 0:00:18]}  Qe8 {[%clk 0:00:39]} 53. Kxh3 {[%clk 0:00:17]}  Kf6 {[%clk 0:00:36]} 54. Kg2 {[%clk 0:00:16]}  Qf8 {[%clk 0:00:35]} 55. Kf3 {[%clk 0:00:16]}  Qe8 {[%clk 0:00:35]} 56. Ke3 {[%clk 0:00:16]}  Kg7 {[%clk 0:00:34]} 57. Kd3 {[%clk 0:00:15]}  Kf6 {[%clk 0:00:35]} 58. Rxf7+ {[%clk 0:00:14]}  Qxf7 {[%clk 0:00:35]} 59. Qxf7+ {[%clk 0:00:15]}  Kxf7 {[%clk 0:00:36]} 60. Kc4 {[%clk 0:00:16]}  Ke7 {[%clk 0:00:37]} 61. Kb5 {[%clk 0:00:16]}  Kd7 {[%clk 0:00:35]} 62. Kb6 {[%clk 0:00:17]} 1-0


[Site "https://www.chess.com"]

[Event "Titled Tuesday Blitz June 27 Early 2023"]
[White "Mekhitarian, Krikor Sevag"]
[Black "Ganiev, Roman"]
[WhiteFideId "2107660"]
[BlackFideId "4131452"]
[WhiteElo "2851"]
[BlackElo "2616"]
[Result "1-0"]
[Round "4"]
[TimeControl "180+2"]
[Date "2023.06.27"]
[WhiteClock "0:00:18"]
[BlackClock "0:00:02"]
[Board "48"]

1. Nf3 {[%clk 0:03:00]}  Nf6 {[%clk 0:02:57]} 2. c4 {[%clk 0:03:01]}  b6 {[%clk 0:02:57]} 3. d4 {[%clk 0:02:47]}  e6 {[%clk 0:02:56]} 4. Nc3 {[%clk 0:02:47]}  Bb7 {[%clk 0:02:54]} 5. e3 {[%clk 0:02:46]}  d5 {[%clk 0:02:54]} 6. Bd2 {[%clk 0:02:43]}  Be7 {[%clk 0:02:53]} 7. Bd3 {[%clk 0:02:43]}  O-O {[%clk 0:02:52]} 8. O-O {[%clk 0:02:43]}  dxc4 {[%clk 0:02:53]} 9. Bxc4 {[%clk 0:02:43]}  c5 {[%clk 0:02:54]} 10. dxc5 {[%clk 0:02:35]}  Bxc5 {[%clk 0:02:51]} 11. Qe2 {[%clk 0:02:35]}  Qe7 {[%clk 0:02:50]} 12. a3 {[%clk 0:02:35]}  Nc6 {[%clk 0:02:46]} 13. b4 {[%clk 0:02:34]}  Bd6 {[%clk 0:02:46]} 14. Nb5 {[%clk 0:02:24]}  Ne5 {[%clk 0:02:34]} 15. Nxd6 {[%clk 0:02:23]}  Nxf3+ {[%clk 0:02:34]} 16. gxf3 {[%clk 0:02:20]}  Qxd6 {[%clk 0:02:34]} 17. Rfd1 {[%clk 0:02:13]}  Qe5 {[%clk 0:02:29]} 18. e4 {[%clk 0:02:08]}  Qh5 {[%clk 0:02:10]} 19. Qe3 {[%clk 0:02:03]}  Rac8 {[%clk 0:02:04]} 20. Rac1 {[%clk 0:02:03]}  Rfd8 {[%clk 0:02:02]} 21. Bf1 {[%clk 0:01:44]}  e5 {[%clk 0:01:27]} 22. Be2 {[%clk 0:01:25]}  Rxc1 {[%clk 0:01:08]} 23. Rxc1 {[%clk 0:01:23]}  h6 {[%clk 0:00:51]} 24. Rc7 {[%clk 0:01:14]}  Qg6+ {[%clk 0:00:45]} 25. Kf1 {[%clk 0:01:14]}  Rd7 {[%clk 0:00:25]} 26. Rxd7 {[%clk 0:01:12]}  Nxd7 {[%clk 0:00:25]} 27. Bd3 {[%clk 0:01:03]}  Qd6 {[%clk 0:00:25]} 28. Ke2 {[%clk 0:00:57]}  Nf6 {[%clk 0:00:25]} 29. f4 {[%clk 0:00:52]}  exf4 {[%clk 0:00:23]} 30. Qxf4 {[%clk 0:00:52]}  Qxf4 {[%clk 0:00:23]} 31. Bxf4 {[%clk 0:00:51]}  Nxe4 {[%clk 0:00:24]} 32. Bb8 {[%clk 0:00:47]}  a6 {[%clk 0:00:21]} 33. Bc7 {[%clk 0:00:44]}  b5 {[%clk 0:00:20]} 34. Ke3 {[%clk 0:00:44]}  Nf6 {[%clk 0:00:20]} 35. Kd4 {[%clk 0:00:44]}  Ng4 {[%clk 0:00:19]} 36. Bg3 {[%clk 0:00:42]}  g6 {[%clk 0:00:17]} 37. Kc5 {[%clk 0:00:42]}  Nf6 {[%clk 0:00:12]} 38. Kb6 {[%clk 0:00:40]}  Bc8 {[%clk 0:00:12]} 39. Kc7 {[%clk 0:00:37]}  Be6 {[%clk 0:00:11]} 40. Kb7 {[%clk 0:00:37]}  Bc4 {[%clk 0:00:10]} 41. Bxc4 {[%clk 0:00:24]}  bxc4 {[%clk 0:00:10]} 42. Kxa6 {[%clk 0:00:25]}  Nd5 {[%clk 0:00:07]} 43. Be5 {[%clk 0:00:23]}  f6 {[%clk 0:00:07]} 44. Bd4 {[%clk 0:00:22]}  c3 {[%clk 0:00:06]} 45. b5 {[%clk 0:00:22]}  c2 {[%clk 0:00:05]} 46. Bb2 {[%clk 0:00:22]}  Kf7 {[%clk 0:00:03]} 47. b6 {[%clk 0:00:22]}  Ke7 {[%clk 0:00:03]} 48. b7 {[%clk 0:00:22]}  Nc7+ {[%clk 0:00:03]} 49. Ka5 {[%clk 0:00:21]}  Kd7 {[%clk 0:00:02]} 50. b8=Q {[%clk 0:00:21]}  Nd5 {[%clk 0:00:02]} 51. Qb5+ {[%clk 0:00:18]} 1-0


[Site "https://www.chess.com"]

[Event "Titled Tuesday Blitz June 27 Early 2023"]
[White "Colas, Joshua"]
[Black "Molina, Roberto Junio Brito"]
[WhiteFideId "2044447"]
[BlackFideId "2109450"]
[WhiteElo "2610"]
[BlackElo "2850"]
[Result "1-0"]
[Round "4"]
[TimeControl "180+2"]
[Date "2023.06.27"]
[WhiteClock "0:00:06"]
[BlackClock "0:00:06"]
[Board "49"]

1. Nf3 {[%clk 0:02:55]}  d5 {[%clk 0:02:59]} 2. c4 {[%clk 0:02:54]}  c6 {[%clk 0:02:59]} 3. g3 {[%clk 0:02:53]}  dxc4 {[%clk 0:02:59]} 4. Bg2 {[%clk 0:02:53]}  b5 {[%clk 0:03:00]} 5. O-O {[%clk 0:02:54]}  Bb7 {[%clk 0:03:00]} 6. a4 {[%clk 0:02:54]}  a6 {[%clk 0:03:00]} 7. b3 {[%clk 0:02:54]}  cxb3 {[%clk 0:02:59]} 8. Qxb3 {[%clk 0:02:46]}  Nd7 {[%clk 0:02:59]} 9. d4 {[%clk 0:02:44]}  e6 {[%clk 0:02:57]} 10. Nc3 {[%clk 0:02:42]}  Ngf6 {[%clk 0:02:57]} 11. Rd1 {[%clk 0:02:41]}  Be7 {[%clk 0:02:56]} 12. Ne5 {[%clk 0:02:42]}  Qb6 {[%clk 0:02:33]} 13. Bf4 {[%clk 0:02:11]}  O-O {[%clk 0:02:29]} 14. a5 {[%clk 0:02:10]}  Qa7 {[%clk 0:02:22]} 15. Bxc6 {[%clk 0:01:48]}  Nxe5 {[%clk 0:02:02]} 16. Bxb7 {[%clk 0:01:48]}  Qxb7 {[%clk 0:01:59]} 17. dxe5 {[%clk 0:01:41]}  Nd7 {[%clk 0:01:59]} 18. f3 {[%clk 0:01:23]}  g5 {[%clk 0:01:51]} 19. Be3 {[%clk 0:01:18]}  Nxe5 {[%clk 0:01:51]} 20. Ne4 {[%clk 0:01:17]}  h6 {[%clk 0:01:44]} 21. Bd4 {[%clk 0:01:15]}  Nc4 {[%clk 0:01:36]} 22. Rac1 {[%clk 0:01:10]}  Rac8 {[%clk 0:01:35]} 23. Bf6 {[%clk 0:01:04]}  Qa7+ {[%clk 0:00:44]} 24. Kh1 {[%clk 0:00:58]}  Rfd8 {[%clk 0:00:38]} 25. Qc3 {[%clk 0:00:38]}  Bxf6 {[%clk 0:00:23]} 26. Nxf6+ {[%clk 0:00:37]}  Kf8 {[%clk 0:00:23]} 27. Nh7+ {[%clk 0:00:36]}  Ke7 {[%clk 0:00:21]} 28. Qf6+ {[%clk 0:00:36]}  Ke8 {[%clk 0:00:21]} 29. Qh8+ {[%clk 0:00:23]}  Ke7 {[%clk 0:00:22]} 30. Qf6+ {[%clk 0:00:23]}  Ke8 {[%clk 0:00:22]} 31. Qg7 {[%clk 0:00:22]}  Ke7 {[%clk 0:00:16]} 32. Qxh6 {[%clk 0:00:21]}  Qe3 {[%clk 0:00:15]} 33. Qf6+ {[%clk 0:00:20]}  Ke8 {[%clk 0:00:16]} 34. Nxg5 {[%clk 0:00:13]}  Ne5 {[%clk 0:00:15]} 35. Nxe6 {[%clk 0:00:04]}  fxe6 {[%clk 0:00:11]} 36. Qxe6+ {[%clk 0:00:05]}  Kf8 {[%clk 0:00:12]} 37. Rxc8 {[%clk 0:00:05]}  Rxc8 {[%clk 0:00:11]} 38. Qxc8+ {[%clk 0:00:06]}  Ke7 {[%clk 0:00:11]} 39. Qc7+ {[%clk 0:00:05]}  Kf6 {[%clk 0:00:10]} 40. Qb6+ {[%clk 0:00:06]}  Kf5 {[%clk 0:00:06]} 41. Qxe3 {[%clk 0:00:06]} 1-0


[Site "https://www.chess.com"]

[Event "Titled Tuesday Blitz June 27 Early 2023"]
[White "Spata, German"]
[Black "Harsh Suresh"]
[WhiteFideId "113026"]
[BlackFideId "45018464"]
[WhiteElo "2607"]
[BlackElo "2816"]
[Result "0-1"]
[Round "4"]
[TimeControl "180+2"]
[Date "2023.06.27"]
[WhiteClock "0:00:00"]
[BlackClock "0:01:07"]
[Board "51"]

1. Nf3 {[%clk 0:02:57]}  Nf6 {[%clk 0:02:59]} 2. e3 {[%clk 0:02:55]}  g6 {[%clk 0:02:59]} 3. b4 {[%clk 0:02:54]}  Bg7 {[%clk 0:02:59]} 4. Bb2 {[%clk 0:02:51]}  O-O {[%clk 0:02:59]} 5. Be2 {[%clk 0:02:46]}  d5 {[%clk 0:02:58]} 6. O-O {[%clk 0:02:45]}  c6 {[%clk 0:02:58]} 7. c4 {[%clk 0:02:44]}  a5 {[%clk 0:02:57]} 8. a3 {[%clk 0:02:43]}  axb4 {[%clk 0:02:56]} 9. axb4 {[%clk 0:02:43]}  Rxa1 {[%clk 0:02:57]} 10. Bxa1 {[%clk 0:02:44]}  dxc4 {[%clk 0:02:57]} 11. Bxc4 {[%clk 0:02:44]}  Nbd7 {[%clk 0:02:57]} 12. d4 {[%clk 0:02:43]}  Nb6 {[%clk 0:02:56]} 13. Bd3 {[%clk 0:02:36]}  Bg4 {[%clk 0:02:55]} 14. Nbd2 {[%clk 0:02:33]}  Qd6 {[%clk 0:02:54]} 15. Qb3 {[%clk 0:02:15]}  Ra8 {[%clk 0:02:51]} 16. h3 {[%clk 0:02:11]}  Bxf3 {[%clk 0:02:49]} 17. Nxf3 {[%clk 0:02:12]}  Nfd5 {[%clk 0:02:49]} 18. b5 {[%clk 0:01:56]}  Ra3 {[%clk 0:02:48]} 19. Qb1 {[%clk 0:01:47]}  Qb4 {[%clk 0:02:39]} 20. bxc6 {[%clk 0:01:42]}  bxc6 {[%clk 0:02:36]} 21. Be4 {[%clk 0:01:28]}  Bf6 {[%clk 0:02:32]} 22. Rc1 {[%clk 0:01:14]}  Kg7 {[%clk 0:02:18]} 23. Qxb4 {[%clk 0:01:01]}  Nxb4 {[%clk 0:02:18]} 24. Bb2 {[%clk 0:00:58]}  Rb3 {[%clk 0:02:14]} 25. Ba1 {[%clk 0:00:47]}  N6d5 {[%clk 0:01:59]} 26. Nd2 {[%clk 0:00:31]}  Ra3 {[%clk 0:01:57]} 27. Nc4 {[%clk 0:00:31]}  Ra2 {[%clk 0:01:54]} 28. Bc3 {[%clk 0:00:20]}  Nxc3 {[%clk 0:01:50]} 29. Rxc3 {[%clk 0:00:20]}  c5 {[%clk 0:01:22]} 30. Rb3 {[%clk 0:00:13]}  Na6 {[%clk 0:01:22]} 31. d5 {[%clk 0:00:08]}  Ra1+ {[%clk 0:01:15]} 32. Kh2 {[%clk 0:00:08]}  Ra4 {[%clk 0:01:07]} 33. Nb6 {[%clk 0:00:00]}  Rxe4 {[%clk 0:01:07]} 0-1


[Site "https://www.chess.com"]

[Event "Titled Tuesday Blitz June 27 Early 2023"]
[White "Fridman, Daniel"]
[Black "Ingebretsen, Jens E"]
[WhiteFideId "11600454"]
[BlackFideId "1522965"]
[WhiteElo "2816"]
[BlackElo "2603"]
[Result "1-0"]
[Round "4"]
[TimeControl "180+2"]
[Date "2023.06.27"]
[WhiteClock "0:01:09"]
[BlackClock "0:00:17"]
[Board "52"]

1. d4 {[%clk 0:02:54]}  Nf6 {[%clk 0:02:59]} 2. Nf3 {[%clk 0:02:54]}  e6 {[%clk 0:02:59]} 3. c4 {[%clk 0:02:54]}  d5 {[%clk 0:02:59]} 4. g3 {[%clk 0:02:53]}  Bb4+ {[%clk 0:02:57]} 5. Nc3 {[%clk 0:02:52]}  O-O {[%clk 0:02:56]} 6. Bg2 {[%clk 0:02:52]}  dxc4 {[%clk 0:02:56]} 7. O-O {[%clk 0:02:52]}  c5 {[%clk 0:02:57]} 8. dxc5 {[%clk 0:02:51]}  Qxd1 {[%clk 0:02:55]} 9. Rxd1 {[%clk 0:02:52]}  Bxc5 {[%clk 0:02:54]} 10. Ne5 {[%clk 0:02:51]}  Nbd7 {[%clk 0:02:44]} 11. Nxc4 {[%clk 0:02:51]}  Ng4 {[%clk 0:02:30]} 12. Ne4 {[%clk 0:02:49]}  Be7 {[%clk 0:02:14]} 13. Ned6 {[%clk 0:02:46]}  Nge5 {[%clk 0:02:11]} 14. Nxe5 {[%clk 0:02:43]}  Nxe5 {[%clk 0:02:12]} 15. Bf4 {[%clk 0:02:31]}  Ng6 {[%clk 0:02:00]} 16. Nxc8 {[%clk 0:02:28]}  Raxc8 {[%clk 0:02:01]} 17. Bxb7 {[%clk 0:02:28]}  Rc2 {[%clk 0:02:01]} 18. Rd2 {[%clk 0:02:28]}  Rxd2 {[%clk 0:01:55]} 19. Bxd2 {[%clk 0:02:29]}  Rb8 {[%clk 0:01:55]} 20. Bf3 {[%clk 0:02:24]}  Rxb2 {[%clk 0:01:49]} 21. Be3 {[%clk 0:02:10]}  a5 {[%clk 0:01:46]} 22. Kf1 {[%clk 0:02:09]}  Rb8 {[%clk 0:01:39]} 23. Rc1 {[%clk 0:01:56]}  h6 {[%clk 0:01:24]} 24. a4 {[%clk 0:01:41]}  Rb4 {[%clk 0:01:22]} 25. Bc6 {[%clk 0:01:39]}  Ne5 {[%clk 0:01:19]} 26. Bb5 {[%clk 0:01:39]}  Ng4 {[%clk 0:01:16]} 27. Bd2 {[%clk 0:01:39]}  Rb2 {[%clk 0:01:10]} 28. Bc3 {[%clk 0:01:34]}  Ra2 {[%clk 0:01:02]} 29. h3 {[%clk 0:01:32]}  Nf6 {[%clk 0:00:38]} 30. Bxa5 {[%clk 0:01:29]}  Nd5 {[%clk 0:00:38]} 31. Be1 {[%clk 0:01:22]}  Ba3 {[%clk 0:00:35]} 32. Rb1 {[%clk 0:01:17]}  Bc5 {[%clk 0:00:33]} 33. a5 {[%clk 0:01:11]}  Kf8 {[%clk 0:00:22]} 34. Bc4 {[%clk 0:01:10]}  Ra4 {[%clk 0:00:21]} 35. Bxd5 {[%clk 0:01:10]}  exd5 {[%clk 0:00:22]} 36. Rb5 {[%clk 0:01:10]}  Rc4 {[%clk 0:00:17]} 37. Rxc5 {[%clk 0:01:09]} 1-0


[Site "https://www.chess.com"]

[Event "Titled Tuesday Blitz June 27 Early 2023"]
[White "Kushko, Dmitriy"]
[Black "Skuhala, Jernej"]
[WhiteFideId "14162261"]
[BlackFideId "14605651"]
[WhiteElo "2815"]
[BlackElo "2601"]
[Result "0-1"]
[Round "4"]
[TimeControl "180+2"]
[Date "2023.06.27"]
[WhiteClock "0:00:12"]
[BlackClock "0:02:00"]
[Board "53"]

1. Nf3 {[%clk 0:03:00]}  Nf6 {[%clk 0:02:59]} 2. g3 {[%clk 0:03:01]}  e6 {[%clk 0:03:00]} 3. Bg2 {[%clk 0:03:01]}  d5 {[%clk 0:03:01]} 4. O-O {[%clk 0:03:01]}  Be7 {[%clk 0:03:01]} 5. d3 {[%clk 0:03:02]}  c5 {[%clk 0:03:01]} 6. Bf4 {[%clk 0:03:02]}  Nc6 {[%clk 0:03:01]} 7. a4 {[%clk 0:03:03]}  b6 {[%clk 0:03:01]} 8. e4 {[%clk 0:03:03]}  Bb7 {[%clk 0:02:52]} 9. e5 {[%clk 0:03:00]}  Nd7 {[%clk 0:02:52]} 10. h4 {[%clk 0:03:01]}  Qc7 {[%clk 0:02:53]} 11. Qe2 {[%clk 0:02:54]}  h6 {[%clk 0:02:52]} 12. h5 {[%clk 0:02:51]}  O-O-O {[%clk 0:02:51]} 13. Nc3 {[%clk 0:02:39]}  a6 {[%clk 0:02:48]} 14. Bh3 {[%clk 0:02:10]}  Kb8 {[%clk 0:02:43]} 15. Nxd5 {[%clk 0:02:06]}  Nd4 {[%clk 0:02:30]} 16. Nxd4 {[%clk 0:01:58]}  Bxd5 {[%clk 0:02:30]} 17. Nb3 {[%clk 0:01:26]}  g5 {[%clk 0:02:26]} 18. hxg6 {[%clk 0:01:24]}  fxg6 {[%clk 0:02:26]} 19. c4 {[%clk 0:01:23]}  Bb7 {[%clk 0:02:26]} 20. Bxe6 {[%clk 0:01:23]}  g5 {[%clk 0:02:27]} 21. Bd2 {[%clk 0:00:47]}  Nxe5 {[%clk 0:02:26]} 22. Bd5 {[%clk 0:00:48]}  Rxd5 {[%clk 0:02:26]} 23. cxd5 {[%clk 0:00:48]}  Bxd5 {[%clk 0:02:26]} 24. f4 {[%clk 0:00:47]}  Nc6 {[%clk 0:02:10]} 25. Bc3 {[%clk 0:00:14]}  Rg8 {[%clk 0:02:04]} 26. Nd2 {[%clk 0:00:13]}  gxf4 {[%clk 0:02:02]} 27. g4 {[%clk 0:00:12]}  f3 {[%clk 0:02:00]} 28. Nxf3 {[%clk 0:00:12]}  Rxg4+ {[%clk 0:02:00]} 29. Kf2 {[%clk 0:00:12]}  Qg3+ {[%clk 0:01:59]} 30. Ke3 {[%clk 0:00:12]}  Bg5# {[%clk 0:02:00]} 0-1


[Site "https://www.chess.com"]

[Event "Titled Tuesday Blitz June 27 Early 2023"]
[White "Ohanyan, Emin"]
[Black "Niekras, Dawid"]
[WhiteFideId "13312022"]
[BlackFideId "1160451"]
[WhiteElo "2809"]
[BlackElo "2600"]
[Result "1-0"]
[Round "4"]
[TimeControl "180+2"]
[Date "2023.06.27"]
[WhiteClock "0:00:12"]
[BlackClock "0:00:02"]
[Board "54"]

1. e4 {[%clk 0:03:00]}  c5 {[%clk 0:02:59]} 2. Nf3 {[%clk 0:03:01]}  d6 {[%clk 0:02:59]} 3. d4 {[%clk 0:03:01]}  cxd4 {[%clk 0:03:00]} 4. Nxd4 {[%clk 0:03:02]}  Nf6 {[%clk 0:03:00]} 5. Nc3 {[%clk 0:03:02]}  a6 {[%clk 0:03:00]} 6. Bc4 {[%clk 0:03:01]}  e6 {[%clk 0:03:00]} 7. Bb3 {[%clk 0:03:01]}  Nbd7 {[%clk 0:03:00]} 8. f4 {[%clk 0:02:57]}  Nc5 {[%clk 0:02:52]} 9. f5 {[%clk 0:02:54]}  b5 {[%clk 0:02:48]} 10. fxe6 {[%clk 0:02:37]}  fxe6 {[%clk 0:02:48]} 11. O-O {[%clk 0:01:58]}  Bd7 {[%clk 0:02:33]} 12. a3 {[%clk 0:00:41]}  Nxb3 {[%clk 0:02:22]} 13. Nxb3 {[%clk 0:00:42]}  Qb6+ {[%clk 0:02:08]} 14. Kh1 {[%clk 0:00:41]}  Be7 {[%clk 0:02:08]} 15. Qd3 {[%clk 0:00:35]}  O-O {[%clk 0:01:54]} 16. Be3 {[%clk 0:00:35]}  Qc7 {[%clk 0:01:37]} 17. Rad1 {[%clk 0:00:26]}  Rac8 {[%clk 0:01:14]} 18. Bg5 {[%clk 0:00:11]}  h6 {[%clk 0:00:27]} 19. Bh4 {[%clk 0:00:11]}  Qc4 {[%clk 0:00:21]} 20. Qxc4 {[%clk 0:00:05]}  Rxc4 {[%clk 0:00:22]} 21. Bxf6 {[%clk 0:00:02]}  Rxf6 {[%clk 0:00:21]} 22. Rxf6 {[%clk 0:00:02]}  gxf6 {[%clk 0:00:21]} 23. Kg1 {[%clk 0:00:03]}  Kf7 {[%clk 0:00:21]} 24. Kf2 {[%clk 0:00:03]}  Bf8 {[%clk 0:00:09]} 25. Nd2 {[%clk 0:00:03]}  Rc8 {[%clk 0:00:09]} 26. Ke3 {[%clk 0:00:04]}  Ke7 {[%clk 0:00:09]} 27. Nf3 {[%clk 0:00:05]}  h5 {[%clk 0:00:09]} 28. h3 {[%clk 0:00:05]}  Bh6+ {[%clk 0:00:09]} 29. Ke2 {[%clk 0:00:06]}  Rg8 {[%clk 0:00:09]} 30. Kf2 {[%clk 0:00:07]}  Bc6 {[%clk 0:00:10]} 31. Nd4 {[%clk 0:00:06]}  Bb7 {[%clk 0:00:10]} 32. g3 {[%clk 0:00:03]}  h4 {[%clk 0:00:06]} 33. g4 {[%clk 0:00:02]}  Bf4 {[%clk 0:00:07]} 34. Nf3 {[%clk 0:00:02]}  Bg3+ {[%clk 0:00:05]} 35. Ke3 {[%clk 0:00:03]}  Rc8 {[%clk 0:00:06]} 36. Nd4 {[%clk 0:00:01]}  Rc7 {[%clk 0:00:04]} 37. Nf3 {[%clk 0:00:01]}  Rc8 {[%clk 0:00:04]} 38. Ra1 {[%clk 0:00:01]}  Bc6 {[%clk 0:00:04]} 39. Rg1 {[%clk 0:00:01]}  Bd7 {[%clk 0:00:03]} 40. Rf1 {[%clk 0:00:01]}  a5 {[%clk 0:00:04]} 41. Nd4 {[%clk 0:00:01]}  b4 {[%clk 0:00:04]} 42. axb4 {[%clk 0:00:02]}  axb4 {[%clk 0:00:05]} 43. Nce2 {[%clk 0:00:03]}  Be5 {[%clk 0:00:04]} 44. Rc1 {[%clk 0:00:03]}  Ra8 {[%clk 0:00:04]} 45. b3 {[%clk 0:00:03]}  Ra2 {[%clk 0:00:04]} 46. Nf3 {[%clk 0:00:03]}  Bc8 {[%clk 0:00:03]} 47. Nxh4 {[%clk 0:00:03]}  Bb7 {[%clk 0:00:03]} 48. Nf3 {[%clk 0:00:03]}  Bb2 {[%clk 0:00:04]} 49. Rb1 {[%clk 0:00:03]}  Ba3 {[%clk 0:00:04]} 50. Ne1 {[%clk 0:00:02]}  Ba6 {[%clk 0:00:03]} 51. Nc1 {[%clk 0:00:02]}  Bxc1+ {[%clk 0:00:02]} 52. Rxc1 {[%clk 0:00:03]}  d5 {[%clk 0:00:01]} 53. exd5 {[%clk 0:00:02]}  exd5 {[%clk 0:00:02]} 54. h4 {[%clk 0:00:03]}  Kd6 {[%clk 0:00:03]} 55. Nf3 {[%clk 0:00:04]}  Bb5 {[%clk 0:00:03]} 56. Nd4 {[%clk 0:00:04]}  Bd7 {[%clk 0:00:04]} 57. Kf4 {[%clk 0:00:05]}  Ra8 {[%clk 0:00:04]} 58. Nf5+ {[%clk 0:00:05]}  Kc5 {[%clk 0:00:04]} 59. h5 {[%clk 0:00:06]}  d4 {[%clk 0:00:04]} 60. Rd1 {[%clk 0:00:06]}  Bxf5 {[%clk 0:00:03]} 61. Kxf5 {[%clk 0:00:07]}  Ra2 {[%clk 0:00:03]} 62. h6 {[%clk 0:00:07]}  Rxc2 {[%clk 0:00:03]} 63. Rh1 {[%clk 0:00:08]}  Rf2+ {[%clk 0:00:03]} 64. Kg6 {[%clk 0:00:08]}  Rg2 {[%clk 0:00:03]} 65. h7 {[%clk 0:00:09]}  Rxg4+ {[%clk 0:00:03]} 66. Kxf6 {[%clk 0:00:10]}  Rf4+ {[%clk 0:00:04]} 67. Ke5 {[%clk 0:00:10]}  Rf8 {[%clk 0:00:03]} 68. h8=Q {[%clk 0:00:11]}  Rxh8 {[%clk 0:00:02]} 69. Rxh8 {[%clk 0:00:12]} 1-0


[Site "https://www.chess.com"]

[Event "Titled Tuesday Blitz June 27 Early 2023"]
[White "Moiseenko, Alexander"]
[Black "Kumsiashvili, Nikoloz"]
[WhiteFideId "14102560"]
[BlackFideId "13600621"]
[WhiteElo "2809"]
[BlackElo "2592"]
[Result "1-0"]
[Round "4"]
[TimeControl "180+2"]
[Date "2023.06.27"]
[WhiteClock "0:01:37"]
[BlackClock "0:00:48"]
[Board "56"]

1. d4 {[%clk 0:02:57]}  Nf6 {[%clk 0:02:59]} 2. Bg5 {[%clk 0:02:56]}  e6 {[%clk 0:02:59]} 3. e4 {[%clk 0:02:56]}  h6 {[%clk 0:03:00]} 4. Bxf6 {[%clk 0:02:56]}  Qxf6 {[%clk 0:03:00]} 5. c3 {[%clk 0:02:56]}  d6 {[%clk 0:02:59]} 6. Bd3 {[%clk 0:02:55]}  e5 {[%clk 0:03:00]} 7. Ne2 {[%clk 0:02:55]}  Be7 {[%clk 0:02:57]} 8. O-O {[%clk 0:02:55]}  Nc6 {[%clk 0:02:54]} 9. Bc2 {[%clk 0:02:26]}  g5 {[%clk 0:02:23]} 10. Na3 {[%clk 0:02:20]}  O-O {[%clk 0:02:18]} 11. Nc4 {[%clk 0:02:20]}  Qg7 {[%clk 0:02:09]} 12. Ne3 {[%clk 0:02:18]}  Bf6 {[%clk 0:02:09]} 13. d5 {[%clk 0:02:16]}  Ne7 {[%clk 0:02:09]} 14. Ng3 {[%clk 0:02:16]}  Qg6 {[%clk 0:01:57]} 15. h3 {[%clk 0:02:14]}  Bd7 {[%clk 0:01:51]} 16. Ba4 {[%clk 0:02:12]}  b5 {[%clk 0:01:50]} 17. Bc2 {[%clk 0:02:12]}  Kg7 {[%clk 0:01:45]} 18. Qf3 {[%clk 0:02:09]}  Kg8 {[%clk 0:01:41]} 19. a4 {[%clk 0:02:06]}  a6 {[%clk 0:01:38]} 20. axb5 {[%clk 0:02:06]}  axb5 {[%clk 0:01:39]} 21. Bd3 {[%clk 0:01:57]}  Bg7 {[%clk 0:01:30]} 22. Rfd1 {[%clk 0:01:56]}  Rfb8 {[%clk 0:01:17]} 23. Nef5 {[%clk 0:01:49]}  Nxf5 {[%clk 0:01:08]} 24. exf5 {[%clk 0:01:49]}  Qf6 {[%clk 0:01:05]} 25. Nh5 {[%clk 0:01:49]}  Qe7 {[%clk 0:00:58]} 26. f6 {[%clk 0:01:48]}  e4 {[%clk 0:00:58]} 27. Bxe4 {[%clk 0:01:45]}  Qe5 {[%clk 0:00:48]} 28. Nxg7 {[%clk 0:01:37]} 1-0


[Site "https://www.chess.com"]